fUSD/lending_fUSD_20250904
["ID","MTS","AMOUNT","RATE_DAILY","PERIOD"]
[383582196,1757008241356,-2217.6,0.000248,2]
[383582198,1757008241365,-588.20808852,0.0002488,2]
[383582199,1757008241374,-482.0,0.0002488,2]
[383582201,1757008241383,-36010.96897173,0.0002489,2]
[383582203,1757008241393,-188.8167384,0.0002489,2]
[383582205,1757008241402,-500.0,0.00024899,2]
[383582207,1757008241412,-449.0,0.000249,20]
[383582209,1757008241421,-3010.21128815,0.000249,3]
[383582211,1757008241431,-800.0,0.000249,9]
[383582213,1757008241440,-7890.859787,0.000249,2]
[383582215,1757008241449,-203.0,0.0002494,2]
[383582216,1757008241459,-151.0,0.0002495,7]
[383582217,1757008241469,-151.0,0.0002495,7]
[383582218,1757008241478,-151.0,0.0002495,7]
[383582219,1757008241487,-3010.21128815,0.00024954,3]
[383582220,1757008241497,-400.0,0.00024959,2]
[383582221,1757008241506,-400.0,0.00024959,2]
[383582222,1757008241515,-400.0,0.00024959,2]
[383582223,1757008241525,-400.0,0.00024959,2]
[383582224,1757008241534,-400.0,0.00024959,2]
[383582225,1757008241543,-400.0,0.00024959,2]
[383582226,1757008241552,-400.0,0.00024959,2]
[383582227,1757008241562,-400.0,0.00024959,2]
[383582228,1757008241572,-400.0,0.00024959,2]
[383582229,1757008241582,-400.0,0.00024959,2]
[383582230,1757008241591,-400.0,0.00024959,2]
[383582231,1757008241606,-400.0,0.00024959,2]
[383582232,1757008241616,-400.0,0.00024959,2]
[383582233,1757008241625,-400.0,0.00024959,2]
[383582234,1757008241634,-400.0,0.00024959,2]
[383582235,1757008241643,-803.1,0.00024959,2]
[383582236,1757008241653,-400.0,0.00024959,2]
[383582237,1757008241662,-400.0,0.00024959,2]
[383582238,1757008241672,-608.1,0.00024959,2]
[383582239,1757008241682,-400.0,0.00024959,2]
[383582240,1757008241691,-390.44,0.00024959,2]
[383582241,1757008241701,-400.0,0.00024959,2]
[383582242,1757008241710,-399.94778788,0.00024959,2]
[383582243,1757008241720,-400.0,0.00024959,2]
[383582244,1757008241731,-265.72,0.00024959,2]
[383582245,1757008241740,-234.18,0.00024959,2]
[383582246,1757008241750,-400.0,0.00024959,2]
[383582247,1757008241759,-400.0,0.00024959,2]
[383582248,1757008241770,-400.0,0.00024959,2]
[383582249,1757008241779,-400.0,0.00024959,2]
[383582250,1757008241790,-400.0,0.00024959,2]
[383582251,1757008241800,-400.0,0.00024959,2]
[383582252,1757008241809,-400.0,0.00024959,2]
[383582253,1757008241819,-400.0,0.00024959,2]
[383582254,1757008241829,-155.42,0.00024959,2]
[383582255,1757008241839,-400.0,0.00024959,2]
[383582256,1757008241850,-400.0,0.00024959,2]
[383582257,1757008241859,-527.59,0.00024959,2]
[383582258,1757008241869,-166.33,0.00024959,2]
[383582259,1757008241878,-213.16,0.00024959,2]
[383582260,1757008241887,-436.38,0.00024959,2]
[383582261,1757008241897,-308.25,0.00024959,2]
[383582262,1757008241906,-400.0,0.00024959,2]
[383582263,1757008241915,-400.0,0.00024959,2]
[383582264,1757008241925,-629.37,0.00024959,2]
[383582265,1757008241934,-400.0,0.00024959,2]
[383582266,1757008241944,-400.0,0.00024959,2]
[383582267,1757008241953,-185.24,0.00024959,2]
[383582268,1757008241963,-152.84,0.00024959,2]
[383582269,1757008241972,-400.0,0.00024959,2]
[383582270,1757008241981,-306.4,0.00024959,2]
[383582271,1757008241991,-252.45,0.00024959,2]
[383582272,1757008242000,-250.16,0.00024959,2]
[383582273,1757008242009,-400.0,0.00024959,2]
[383582274,1757008242019,-223.96,0.00024959,2]
[383582275,1757008242235,-400.0,0.00024959,2]
[383582276,1757008242245,-400.0,0.00024959,2]
[383582277,1757008242254,-400.0,0.00024959,2]
[383582278,1757008242263,-400.0,0.00024959,2]
[383582279,1757008242273,-400.0,0.00024959,2]
[383582280,1757008242282,-420.04,0.00024959,2]
[383582281,1757008242291,-400.0,0.00024959,2]
[383582282,1757008242301,-400.0,0.00024959,2]
[383582283,1757008242311,-400.0,0.00024959,2]
[383582284,1757008242320,-400.0,0.00024959,2]
[383582285,1757008242330,-400.0,0.00024959,2]
[383582286,1757008242339,-404.28866568,0.00024959,2]
[383582287,1757008242349,-400.0,0.00024959,2]
[383582288,1757008242359,-403.13800929,0.00024959,2]
[383582289,1757008242368,-400.0,0.00024959,2]
[383582290,1757008242378,-400.0,0.00024959,2]
[383582291,1757008242388,-400.0,0.00024959,2]
[383582292,1757008242397,-500.0,0.00024959,2]
[383582293,1757008242406,-240.64,0.00024959,2]
[383582294,1757008242416,-400.0,0.00024959,2]
[383582295,1757008242425,-400.0,0.00024959,2]
[383582296,1757008242434,-231.42,0.00024959,2]
[383582297,1757008242443,-151.0,0.00024959,7]
[383582298,1757008242453,-164.11,0.00024959,2]
[383582299,1757008242463,-400.0,0.00024959,2]
[383582300,1757008242473,-400.0,0.00024959,2]
[383582301,1757008242482,-400.0,0.00024959,2]
[383582302,1757008242492,-403.0457783,0.00024959,2]
[383582303,1757008242501,-400.0,0.00024959,2]
[383582304,1757008242511,-400.0,0.00024959,2]
[383582305,1757008242520,-400.0,0.00024959,2]
[383582306,1757008242530,-400.0,0.00024959,2]
[383582307,1757008242540,-400.0,0.00024959,2]
[383582308,1757008242549,-313.12,0.00024959,2]
[383582309,1757008242558,-400.0,0.00024959,2]
[383582310,1757008242569,-400.0,0.00024959,2]
[383582311,1757008242579,-162.19,0.0002496,2]
[383582312,1757008242588,-400.0,0.0002496,2]
[383582313,1757008242600,-500.0,0.0002496,2]
[383582314,1757008242611,-400.0,0.0002496,2]
[383582315,1757008242621,-421.07,0.0002496,2]
[383582316,1757008242631,-400.0,0.0002496,2]
[383582317,1757008242640,-367.24,0.0002496,2]
[383582318,1757008242650,-300.42,0.0002496,2]
[383582319,1757008242659,-400.0,0.0002496,2]
[383582320,1757008242669,-414.66,0.0002496,2]
[383582321,1757008242679,-281.13,0.0002496,2]
[383582322,1757008242690,-302.75,0.0002496,2]
[383582323,1757008242699,-307.52,0.0002496,2]
[383582324,1757008242708,-400.0,0.0002496,2]
[383582325,1757008242717,-400.0,0.0002496,2]
[383582326,1757008242727,-249.56,0.0002496,2]
[383582327,1757008242736,-293.88,0.0002496,2]
[383582328,1757008242746,-501.06,0.0002496,2]
[383582329,1757008242755,-400.0,0.0002496,2]
[383582330,1757008242765,-400.0,0.0002496,2]
[383582331,1757008242774,-243.85,0.0002496,2]
[383582332,1757008242784,-400.0,0.0002496,2]
[383582333,1757008242794,-400.0,0.0002496,2]
[383582334,1757008242803,-400.0,0.0002496,2]
[383582335,1757008242812,-400.0,0.0002496,2]
[383582336,1757008242820,-270.57,0.0002496,2]
[383582337,1757008242828,-232.12,0.0002496,2]
[383582338,1757008242838,-170.68,0.0002496,2]
[383582339,1757008242846,-400.0,0.0002496,2]
[383582340,1757008242853,-400.0,0.0002496,2]
[383582341,1757008242862,-400.0,0.0002496,2]
[383582342,1757008242871,-400.0,0.0002496,2]
[383582343,1757008242881,-400.0,0.0002496,2]
[383582344,1757008242891,-400.0,0.0002496,2]
[383582345,1757008242900,-191.42,0.0002496,2]
[383582346,1757008242910,-400.0,0.0002496,2]
[383582347,1757008242920,-400.0,0.0002496,2]
[383582348,1757008242929,-363.71,0.0002496,2]
[383582349,1757008242939,-400.0,0.0002496,2]
[383582350,1757008242948,-400.0,0.0002496,2]
[383582351,1757008242958,-400.0,0.0002496,2]
[383582352,1757008242968,-400.0,0.0002496,2]
[383582353,1757008242977,-256.41,0.0002496,2]
[383582354,1757008242987,-400.0,0.0002496,2]
[383582355,1757008242996,-271.27,0.0002496,2]
[383582356,1757008243006,-400.0,0.0002496,2]
[383582357,1757008243015,-400.0,0.0002496,2]
[383582358,1757008243025,-332.96,0.0002496,2]
[383582359,1757008243034,-535.18,0.0002496,2]
[383582360,1757008243043,-506.45,0.0002496,2]
[383582361,1757008243054,-400.0,0.0002496,2]
[383582362,1757008243063,-175.84,0.0002496,2]
[383582363,1757008243073,-316.77,0.0002496,2]
[383582364,1757008243082,-154.08,0.0002496,2]
[383582365,1757008243092,-400.0,0.0002496,2]
[383582366,1757008243101,-522.92,0.0002496,2]
[383582367,1757008243110,-400.0,0.0002496,2]
[383582368,1757008243120,-483.99,0.0002496,2]
[383582369,1757008243130,-400.0,0.0002496,2]
[383582371,1757008243139,-400.0,0.0002496,2]
[383582373,1757008243149,-400.0,0.0002496,2]
[383582375,1757008243158,-400.0,0.0002496,2]
[383582377,1757008243168,-400.0,0.0002496,2]
[383582379,1757008243177,-400.0,0.0002496,2]
[383582382,1757008243187,-400.0,0.0002496,2]
[383582383,1757008243198,-400.0,0.0002496,2]
[383582384,1757008243207,-400.0,0.0002496,2]
[383582385,1757008243219,-400.0,0.0002496,2]
[383582386,1757008243229,-261.35,0.0002496,2]
[383582387,1757008243238,-400.0,0.0002496,2]
[383582388,1757008243248,-400.0,0.0002496,2]
[383582389,1757008243258,-372.06,0.0002496,2]
[383582391,1757008243267,-400.0,0.0002496,2]
[383582392,1757008243277,-319.43355908,0.0002496,2]
[383582393,1757008243286,-163.7748883,0.00024963,2]
[383582394,1757008243296,-150.0,0.00024965,2]
[383582395,1757008243306,-524.59774904,0.00024967,2]
[383582396,1757008243316,-668.60497426,0.00024968,2]
[383582397,1757008243326,-151.0,0.0002497,7]
[383582398,1757008243335,-152.63878,0.0002497,7]
[383582399,1757008243344,-151.0,0.0002497,7]
[383582400,1757008243354,-500.0,0.0002497,2]
[383582401,1757008243364,-500.0,0.0002497,2]
[383582402,1757008243373,-812.61219949,0.0002497,2]
[383582403,1757008243382,-212.59699798,0.0002497,3]
[383582404,1757008243392,-514.64478986,0.0002497,3]
[383582405,1757008243404,-160.0,0.0002497,3]
[383582406,1757008243414,-160.0,0.0002497,3]
[383582407,1757008243423,-956.61942472,0.00024972,2]
[383582408,1757008243433,-620.6257297,0.00024972,2]
[383582409,1757008243443,-500.0,0.00024973,2]
[383582410,1757008243453,-500.0,0.00024973,2]
[383582411,1757008243462,-542.32228893,0.00024973,2]
[383582412,1757008243472,-500.0,0.00024973,2]
[383582413,1757008243481,-500.0,0.00024973,2]
[383582414,1757008243492,-598.14689895,0.00024973,2]
[383582415,1757008243691,-1100.62664994,0.00024973,2]
[383582416,1757008243702,-1244.63387517,0.00024975,2]
[383582417,1757008243712,-1388.64110039,0.00024977,2]
[383582418,1757008243721,-1532.64832562,0.00024978,2]
[383582419,1757008243731,-666.0,0.00024979,2]
[383582420,1757008243741,-212.59699798,0.0002498,3]
[383582421,1757008243751,-28044.8204805,0.0002498,3]
[383582422,1757008243761,-500.0,0.0002498,2]
[383582423,1757008243770,-1676.65555085,0.0002498,2]
[383582424,1757008243779,-151.0,0.0002498,7]
[383582425,1757008243789,-212.59699798,0.0002498,3]
[383582426,1757008243798,-28044.8204805,0.0002498,3]
[383582427,1757008243808,-235.37690911,0.0002498,2]
[383582428,1757008243818,-500.0,0.00024989,2]
[383582429,1757008243828,-500.0,0.00024989,2]
[383582431,1757008243838,-500.0,0.00024989,2]
[383582433,1757008243847,-22681.98558056,0.0002499,3]
[383582435,1757008243856,-124077.48720139,0.0002499,3]
[383582677,1757008246227,-255.1919861,0.00023369,2]
[383582683,1757008246282,-252.67955631,0.00023369,2]
[383582768,1757008624506,159.55,0.00011947,2]
[383582769,1757008624728,159.55,0.00013939,2]
[383582770,1757008624964,159.55,0.0001593,2]
[383582771,1757008625195,159.55,0.00017921,2]
[383582772,1757008625410,159.55,0.00019912,2]
[383582785,1757009116567,250.0,0.00015,2]
[383582787,1757009192230,160.5,0.00013699,2]
[383582804,1757009431478,-160.5,0.00020187,2]
[383582806,1757009431488,-159.55,0.00021903,2]
[383582808,1757009431498,-1200.0,0.0002199,2]
[383582810,1757009431507,-500.0,0.00021991,2]
[383582811,1757009431517,-500.0,0.00021991,2]
[383582812,1757009431526,-403.54818701,0.00021991,2]
[383582813,1757009431536,-764.0,0.00021992,2]
[383582814,1757009431545,-246.47,0.00022,2]
[383582815,1757009431555,-415.59,0.000221,2]
[383582816,1757009431564,-193.81,0.000221,2]
[383582817,1757009431573,-195.0,0.00022206,2]
[383582818,1757009431583,-896.0,0.00022681,2]
[383582819,1757009431592,-1175.0,0.00022681,2]
[383582820,1757009431601,-1647.61321083,0.00022681,2]
[383582821,1757009431613,-316.50825551,0.00022681,2]
[383582822,1757009431624,-848.37601719,0.00022681,2]
[383582823,1757009431640,-700.13581716,0.00022681,2]
[383582824,1757009431800,-650.36669931,0.00022681,2]
[383582825,1757009431810,-724.0,0.00022681,2]
[383582826,1757009431819,-6163.0,0.00022681,2]
[383582827,1757009431829,-5000.0,0.00023013,2]
[383582828,1757009431838,-150.0,0.00023032,2]
[383582829,1757009431847,-3010.21128815,0.00023144,2]
[383582830,1757009431857,-500.0,0.000233,2]
[383582831,1757009431866,-541.28600814,0.000233,2]
[383582832,1757009431875,-500.0,0.000233,2]
[383582833,1757009431886,-500.0,0.000233,2]
[383582834,1757009431895,-500.0,0.000233,2]
[383582836,1757009431905,-171.37,0.00023339,2]
[383582838,1757009431914,-440.47498343,0.00023374,2]
[383582839,1757009431923,-151.0,0.00023374,2]
[383582841,1757009431933,-151.0,0.00023374,2]
[383582843,1757009431944,-151.0,0.00023374,2]
[383582846,1757009431954,-151.0,0.00023374,2]
[383582847,1757009431963,-151.0,0.00023374,2]
[383582849,1757009431973,-822.25744248,0.00023374,2]
[383582851,1757009431983,-180.15118777,0.00023374,2]
[383582853,1757009431992,-151.0,0.00023374,2]
[383582855,1757009432002,-200.48402525,0.00023374,2]
[383582857,1757009432013,-151.0,0.00023374,2]
[383582859,1757009432022,-151.0,0.00023374,2]
[383582862,1757009432032,-160.0,0.00023374,2]
[383582864,1757009432042,-730.21950581,0.00023374,2]
[383582865,1757009432051,-151.0,0.00023374,2]
[383582867,1757009432061,-151.0,0.00023374,2]
[383582869,1757009432070,-151.0,0.00023374,2]
[383582872,1757009432081,-151.0,0.00023374,2]
[383582874,1757009432091,-250.0,0.00023374,2]
[383582876,1757009432101,-151.0,0.00023374,2]
[383582877,1757009432111,-151.0,0.00023374,2]
[383582879,1757009432121,-250.0,0.00023374,2]
[383582881,1757009432131,-151.0,0.00023374,2]
[383582884,1757009432141,-500.0,0.00023374,2]
[383582885,1757009432151,-500.0,0.00023374,2]
[383582888,1757009432161,-500.0,0.00023374,2]
[383582889,1757009432171,-475.25645239,0.00023374,2]
[383582892,1757009432183,-24.74354761,0.00023374,2]
[383582894,1757009432193,-500.0,0.00023374,2]
[383582896,1757009432202,-239.84119403,0.00023374,2]
[383582898,1757009432211,-500.0,0.00023374,2]
[383582900,1757009432221,-151.0,0.00023374,2]
[383582902,1757009432231,-151.0,0.00023374,2]
[383582904,1757009432240,-500.0,0.00023374,2]
[383582906,1757009432249,-151.0,0.00023374,2]
[383582908,1757009432259,-500.0,0.00023374,2]
[383582909,1757009432268,-500.0,0.00023374,2]
[383582911,1757009432278,-151.0,0.00023374,2]
[383582913,1757009432287,-500.0,0.00023374,2]
[383582916,1757009432298,-151.0,0.00023374,2]
[383582918,1757009432307,-500.0,0.00023374,2]
[383582920,1757009432317,-151.0,0.00023374,2]
[383582922,1757009432326,-500.0,0.00023374,2]
[383582924,1757009432336,-151.0,0.00023374,2]
[383582926,1757009432345,-600.0,0.00023374,2]
[383582928,1757009432356,-151.0,0.00023374,2]
[383582930,1757009432366,-600.0,0.00023374,2]
[383582932,1757009432380,-151.0,0.00023374,2]
[383582934,1757009432390,-600.0,0.00023374,2]
[383582936,1757009432399,-151.0,0.00023374,2]
[383582938,1757009432408,-600.0,0.00023374,2]
[383582940,1757009432418,-151.0,0.00023374,2]
[383582942,1757009432428,-600.0,0.00023374,2]
[383582944,1757009432437,-600.0,0.00023374,2]
[383582946,1757009432447,-543.81302598,0.00023374,2]
[383582948,1757009432457,-151.0,0.00023374,2]
[383582950,1757009432468,-250.0,0.00023374,2]
[383582952,1757009432477,-250.0,0.00023374,2]
[383582954,1757009432486,-250.0,0.00023374,2]
[383582956,1757009432496,-250.0,0.00023374,2]
[383582958,1757009432504,-1798.40673832,0.00023388,2]
[383583187,1757009437632,-169.12870744,0.00021989,2]
[383583188,1757009437643,-440.50468359,0.00021989,2]
[383583189,1757009437653,-155.94979856,0.00021989,2]
[383583190,1757009437662,-13003.522,0.00022681,2]
[383583191,1757009437672,-794.35947482,0.00023388,2]
[383583192,1757009437684,-789.23378686,0.00023388,2]
[383583193,1757009437693,-1258.0,0.00023388,2]
[383583194,1757009437703,-924.0,0.00023388,2]
[383583195,1757009437712,-192.11796739,0.00023388,2]
[383583196,1757009437723,-922.793,0.00023388,2]
[383583369,1757009439469,-540.43967541,0.00023388,2]
[383583381,1757009439574,-379.6493572,0.00023388,2]
[383583383,1757009439584,-567.0,0.00023388,2]
[383583385,1757009439593,-600.0,0.00023388,2]
[383583387,1757009439602,-1300.0,0.00023388,2]
[383583389,1757009439612,-1391.51342235,0.00023388,2]
[383583391,1757009439623,-185.48657765,0.00023388,2]
[383583393,1757009439633,-811.0,0.00023388,2]
[383583395,1757009439643,-150.0,0.000234,4]
[383583398,1757009439657,-150.0,0.000234,4]
[383583400,1757009439667,-150.0,0.000234,4]
[383583402,1757009439676,-150.0,0.000234,4]
[383583404,1757009439686,-150.0,0.000234,4]
[383583406,1757009439695,-150.0,0.000234,4]
[383583408,1757009439704,-150.0,0.000234,4]
[383583410,1757009439714,-150.0,0.000234,4]
[383583412,1757009439723,-150.0,0.000234,4]
[383583414,1757009439734,-500.0,0.00023471,2]
[383583416,1757009439744,-500.0,0.00023471,2]
[383583418,1757009439754,-598.14689895,0.00023471,2]
[383583420,1757009439763,-89.46587215,0.00023473,2]
[383583422,1757009439775,-60.72412785,0.00023473,2]
[383583424,1757009439792,-3149.58,0.00023475,2]
[383583427,1757009439802,-160.0,0.00023483,7]
[383583428,1757009439812,-500.93611708,0.00023486,2]
[383583429,1757009439821,-160.0,0.00023489,2]
[383583430,1757009439831,-160.0,0.00023489,2]
[383583465,1757009440100,-514.64478986,0.00023489,2]
[383583468,1757009440109,-212.59699798,0.00023489,2]
[383583471,1757009440119,-472.0,0.000235,2]
[383583473,1757009440129,-500.0,0.00023529,2]
[383583475,1757009440139,-500.0,0.00023529,2]
[383583477,1757009440148,-666.0,0.00023551,3]
[383583479,1757009440158,-200.0,0.00023561,2]
[383583481,1757009440167,-640.48,0.00023573,2]
[383583483,1757009440178,-252.0,0.00023699,2]
[383583485,1757009440187,-1000.0,0.00023726,2]
[383583487,1757009440197,-500.0,0.00023848,2]
[383583489,1757009440209,-500.0,0.00023884,2]
[383583490,1757009440220,-15858.69055976,0.00023884,2]
[383583493,1757009440232,-14473.78944024,0.00023884,2]
[383583495,1757009440242,-250.0,0.00023884,2]
[383583497,1757009440251,-159.55,0.00023895,2]
[383583499,1757009440261,-8385.78414408,0.000239,2]
[383583501,1757009440270,-35201.74294254,0.00024,2]
[383583503,1757009440280,-415.59,0.00024,2]
[383583505,1757009440289,-193.81,0.00024,2]
[383583507,1757009440298,-1680.0,0.00024008,2]
[383583509,1757009440307,-442.85745849,0.00024077,2]
[383583511,1757009440318,-500.0,0.00024077,2]
[383583513,1757009440328,-164.65,0.00024132,2]
[383583515,1757009440337,-8385.78414408,0.00024442,2]
[383583517,1757009440347,-1000.0,0.00024616,2]
[383583519,1757009440356,-312.03,0.00024658,2]
[383583521,1757009440367,-463.0,0.0002468,2]
[383583523,1757009440376,-668.01,0.00024718,7]
[383583525,1757009440385,-457.55379,0.0002474,2]
[383583527,1757009440395,-248.71531821,0.00024743,2]
[383583529,1757009440405,-150.0,0.00024769,2]
[383583531,1757009440414,-150.0,0.00024769,2]
[383583533,1757009440425,-150.0,0.00024769,2]
[383583535,1757009440435,-300.0,0.000248,9]
[383583537,1757009440445,-32409.87207453,0.0002489,2]
[383583539,1757009440455,-379.16910641,0.0002489,2]
[383583541,1757009440465,-188.8167384,0.0002489,2]
[383583543,1757009440475,-727.11513381,0.00024899,2]
[383583545,1757009440484,-700.0,0.000249,9]
[383583547,1757009440499,-161.62063569,0.000249,2]
[383583549,1757009440510,-8661.63194985,0.000249,2]
[383583551,1757009440520,-510.6,0.00024921,2]
[383583553,1757009440529,-928.90023938,0.00024931,7]
[383583555,1757009440538,-155.46,0.00024958,2]
[383583557,1757009440548,-400.0,0.00024959,2]
[383583559,1757009440558,-400.0,0.00024959,2]
[383583561,1757009440567,-150.29,0.00024959,2]
[383583563,1757009440577,-400.0,0.00024959,2]
[383583565,1757009440587,-221.55,0.00024959,2]
[383583567,1757009440597,-400.0,0.00024959,2]
[383583569,1757009440606,-400.0,0.00024959,2]
[383583571,1757009440616,-400.0,0.00024959,2]
[383583573,1757009440625,-400.0,0.00024959,2]
[383583575,1757009440634,-400.0,0.00024959,2]
[383583576,1757009440646,-400.0,0.00024959,2]
[383583578,1757009440658,-400.0,0.00024959,2]
[383583581,1757009440669,-400.0,0.00024959,2]
[383583583,1757009440681,-251.17,0.00024959,2]
[383583585,1757009440691,-400.0,0.00024959,2]
[383583587,1757009440702,-400.0,0.00024959,2]
[383583589,1757009440713,-500.0,0.00024959,2]
[383583591,1757009440724,-400.0,0.00024959,2]
[383583592,1757009440734,-400.0,0.00024959,2]
[383583594,1757009440745,-2217.6,0.0002496,2]
[383583597,1757009440758,-500.0,0.00024973,2]
[383583599,1757009440769,-542.32228893,0.00024973,2]
[383583601,1757009440779,-500.0,0.00024973,2]
[383583602,1757009440788,-500.0,0.00024973,2]
[383583605,1757009440799,-510.6,0.00024973,2]
[383583606,1757009440809,-150.0,0.00024975,2]
[383583608,1757009440818,-524.59774904,0.00024977,2]
[383583610,1757009440828,-668.60497426,0.00024978,2]
[383583612,1757009440838,-510.6,0.0002498,2]
[383583614,1757009440847,-151.0,0.0002498,7]
[383583617,1757009440858,-812.61219949,0.0002498,2]
[383583619,1757009440868,-510.6,0.0002498,2]
[383583621,1757009440878,-510.6,0.0002498,2]
[383583622,1757009440887,-300.195137,0.00024982,2]
[383583624,1757009440903,-620.62572999,0.00024982,2]
[383583626,1757009440912,-2308.7639463,0.00024982,2]
[383583629,1757009440922,-956.61942472,0.00024982,2]
[383583631,1757009440932,-160.0,0.00024983,3]
[383583633,1757009440944,-514.64478986,0.00024983,3]
[383583635,1757009440955,-28044.8204805,0.00024983,3]
[383583637,1757009440968,-1100.62664994,0.00024983,2]
[383583639,1757009440977,-8385.78414408,0.00024984,2]
[383583641,1757009440987,-1244.63387517,0.00024985,2]
[383583643,1757009440997,-1388.64110039,0.00024987,2]
[383583645,1757009441006,-1532.64832562,0.00024988,2]
[383583647,1757009441016,-500.0,0.00024989,2]
[383583649,1757009441025,-399.94778788,0.00024989,2]
[383583651,1757009441035,-608.1,0.00024989,2]
[383583653,1757009441044,-400.0,0.00024989,2]
[383583655,1757009441053,-166.33,0.00024989,2]
[383583657,1757009441063,-400.0,0.00024989,2]
[383583660,1757009441073,-629.37,0.00024989,2]
[383583661,1757009441082,-400.0,0.00024989,2]
[383583663,1757009441091,-527.59,0.00024989,2]
[383583665,1757009441101,-436.38,0.00024989,2]
[383583667,1757009441110,-400.0,0.00024989,2]
[383583669,1757009441120,-400.0,0.00024989,2]
[383583671,1757009441130,-420.04,0.00024989,2]
[383583673,1757009441143,-400.0,0.00024989,2]
[383583676,1757009441153,-400.0,0.00024989,2]
[383583677,1757009441163,-223.96,0.00024989,2]
[383583679,1757009441172,-231.42,0.00024989,2]
[383583681,1757009441182,-164.11,0.00024989,2]
[383583684,1757009441192,-240.64,0.00024989,2]
[383583685,1757009441201,-400.0,0.00024989,2]
[383583687,1757009441211,-400.0,0.00024989,2]
[383583690,1757009441220,-400.0,0.00024989,2]
[383583692,1757009441230,-400.0,0.00024989,2]
[383583694,1757009441239,-400.0,0.00024989,2]
[383583695,1757009441248,-400.0,0.00024989,2]
[383583698,1757009441258,-400.0,0.00024989,2]
[383583700,1757009441268,-400.0,0.00024989,2]
[383583702,1757009441277,-876.11,0.00024989,2]
[383583704,1757009441286,-151.0,0.00024989,7]
[383583706,1757009441295,-400.0,0.00024989,2]
[383583708,1757009441305,-400.0,0.00024989,2]
[383583710,1757009441314,-400.0,0.00024989,2]
[383583712,1757009441324,-400.0,0.00024989,2]
[383583714,1757009441333,-28044.8204805,0.0002499,3]
[383583716,1757009441343,-514.64478986,0.0002499,3]
[383583718,1757009441351,-22681.98558056,0.0002499,3]
[383583720,1757009441361,-200.0,0.0002499,2]
[383583722,1757009441371,-160.0,0.0002499,3]
[383583724,1757009441381,-200.0,0.0002499,2]
[383583725,1757009441393,-151.0,0.0002499,7]
[383583727,1757009441402,-212.59699798,0.0002499,3]
[383583729,1757009441411,-112179.281922,0.0002499,3]
[383583731,1757009441422,-15564.73813998,0.0002499,3]
[383583737,1757009441467,-1775.06453693,0.0002499,3]
[383583740,1757009441487,-3160.35210463,0.0002499,3]
[383583742,1757009441499,-276.78,0.0002499,3]
[383583744,1757009441510,-482.60181618,0.0002499,3]
[383583839,1757009442528,-5174.710392,0.0002499,3]
[383583859,1757009445593,-62451.08196758,0.0002499,3]
[383583860,1757009445604,-151.0,0.0002499,7]
[383583861,1757009445614,-151.0,0.0002499,7]
[383583862,1757009445624,-1676.65555085,0.0002499,2]
[383583863,1757009445633,-200.0,0.0002499,2]
[383583864,1757009445643,-151.0,0.0002499,7]